fUSD/lending_fUSD_20250614
["ID","MTS","AMOUNT","RATE_DAILY","PERIOD"]
[365806985,1749927165270,-16642.85616667,0.00016999,2]
[365806986,1749927165300,-16642.85616667,0.00016999,2]
[365806987,1749927165336,-16642.85616667,0.00016999,2]
[365806988,1749927165384,-16642.85616667,0.00016999,2]
[365806989,1749927165418,-16642.85616667,0.00016999,2]
[365806990,1749927165452,-2736.31906407,0.00016999,2]
[365806991,1749927165475,-537.0,0.00017,2]
[365806992,1749927165500,-13369.5371026,0.00017,2]
[365806993,1749927165596,-16642.85616667,0.00017,2]
[365806994,1749927165751,-16642.85616667,0.00017,2]
[365806995,1749927165911,-16642.85616667,0.00017,2]
[365806996,1749927166052,-16642.85616667,0.00017,2]
[365806997,1749927166196,-16642.85616667,0.00017,2]
[365806998,1749927166343,-16642.85616667,0.00017,2]
[365806999,1749927166484,-16642.85616667,0.00017,2]
[365807000,1749927166632,-16642.85616667,0.00017,2]
[365807001,1749927166771,-16642.85616667,0.00017,2]
[365807002,1749927166916,-16642.85616667,0.00017,2]
[365807003,1749927167071,-16642.85616667,0.00017,2]
[365807004,1749927167202,-16642.85616667,0.00017,2]
[365807005,1749927167340,-16642.85616667,0.00017,2]
[365807006,1749927167473,-16642.85616667,0.00017,2]
[365807007,1749927167620,-16642.85616667,0.00017,2]
[365807008,1749927167762,-16642.85616667,0.00017,2]
[365807009,1749927167917,-16642.85616667,0.00017,2]
[365807010,1749927168048,-16642.85616667,0.00017,2]
[365807011,1749927168186,-16642.85616667,0.00017,2]
[365807012,1749927168337,-16642.85616667,0.00017,2]
[365807013,1749927168488,-16642.85616667,0.00017,2]
[365807014,1749927168680,-16642.85616667,0.00017,2]
[365807015,1749927168833,-16642.85616667,0.00017,2]
[365807016,1749927168986,-16642.85616667,0.00017,2]
[365807017,1749927169337,-16642.85616667,0.00017,2]
[365807018,1749927169489,-16642.85616667,0.00017,2]
[365807019,1749927169619,-16642.85616667,0.00017,2]
[365807020,1749927169745,-16642.85616667,0.00017,2]
[365807021,1749927169884,-16642.85616667,0.00017,2]
[365807022,1749927170023,-16642.85616667,0.00017,2]
[365807023,1749927170148,-16642.85616667,0.00017,2]
[365807024,1749927170416,-16642.85616667,0.00017,2]
[365807025,1749927170614,-16642.85616667,0.00017,2]
[365807026,1749927170771,-16642.85616667,0.00017,2]
[365807027,1749927170948,-500.0,0.00016165,2]
[365807028,1749927170973,-16142.85616667,0.00017,2]
[365807029,1749927171131,-16642.85616667,0.00017,2]
[365807030,1749927171272,-16642.85616667,0.00017,2]
[365807031,1749927171404,-16642.85616667,0.00017,2]
[365807032,1749927171561,-16642.85616667,0.00017,2]
[365807033,1749927171706,-16642.85616667,0.00017,2]
[365807034,1749927171846,-16642.85616667,0.00017,2]
[365807035,1749927171971,-16642.85616667,0.00017,2]
[365807036,1749927172120,-16642.85616667,0.00017,2]
[365807037,1749927173467,-16642.85616667,0.00017,2]
[365807038,1749927173495,-16642.85616667,0.00017,2]
[365807039,1749927173524,-16642.85616667,0.00017,2]
[365807041,1749927273001,442.33,0.00013699,2]
[365807042,1749927402978,-500.0,0.00016165,2]
[365807043,1749927403003,-600.0,0.00016195,4]
[365807044,1749927403027,-219.47,0.00016225,2]
[365807045,1749927403053,-600.0,0.00016354,4]
[365807046,1749927403079,-201.0,0.00016484,2]
[365807047,1749927403108,-200.0,0.00016484,2]
[365807048,1749927403133,-600.0,0.00016638,4]
[365807049,1749927403159,-833.63237626,0.00016721,2]
[365807050,1749927403183,-2000.0,0.00016864,2]
[365807051,1749927403207,-1200.0,0.00016897,2]
[365807052,1749927403234,-300.0,0.00016897,2]
[365807053,1749927403258,-300.0,0.00016897,2]
[365807054,1749927403280,-1319.2224,0.00016898,2]
[365807055,1749927403304,-1091.7216,0.00016898,2]
[365807056,1749927403327,-34.95362374,0.000169,2]
[365807057,1749927404667,-282.03627982,0.000169,2]
[365807058,1749927404690,-2135.91406501,0.000169,2]
[365807059,1749927404717,-1000.0,0.000169,2]
[365807060,1749927404740,-2500.0,0.000169,2]
[365807061,1749927404765,-159.47825011,0.000169,2]
[365807062,1749927404790,-187.80188241,0.000169,2]
[365807063,1749927404814,-910.85,0.000169,2]
[365807064,1749927404836,-179.38385654,0.000169,2]
[365807065,1749927404858,-155.81126964,0.000169,2]
[365807066,1749927404880,-500.0,0.000169,2]
[365807067,1749927404902,-1988.72439647,0.000169,2]
[365807068,1749927404935,-636.92414311,0.000169,2]
[365807069,1749927404958,-303.0,0.00016961,2]
[365807070,1749927404982,-500.0,0.00016973,2]
[365807071,1749927405006,-500.0,0.00016973,2]
[365807072,1749927405030,-500.0,0.00016973,2]
[365807073,1749927405055,-181.38307142,0.0001698,2]
[365807074,1749927405079,-7378.69278547,0.00016998,2]
[365807075,1749927405107,-10000.0,0.00016998,2]
[365807076,1749927405139,-10000.0,0.00016998,2]
[365807077,1749927405167,-10000.0,0.00016998,2]
[365807078,1749927405204,-10000.0,0.00016998,2]
[365807079,1749927405235,-10000.0,0.00016998,2]
[365807080,1749927405268,-10000.0,0.00016998,2]
[365807081,1749927405296,-10000.0,0.00016998,2]
[365807082,1749927405328,-10000.0,0.00016998,2]
[365807083,1749927405357,-10000.0,0.00016998,2]
[365807084,1749927420115,-500.0,0.00016165,2]
[365807085,1749927420141,-9500.0,0.00016998,2]
[365807086,1749927420399,-10000.0,0.00016998,2]
[365807087,1749927420557,-10000.0,0.00016998,2]
[365807088,1749927420695,-10000.0,0.00016998,2]
[365807089,1749927420842,-10000.0,0.00016998,2]
[365807090,1749927420955,-10000.0,0.00016998,2]
[365807091,1749927421153,-10000.0,0.00016998,2]
[365807092,1749927421261,-2549.29155043,0.00016998,2]
[365807093,1749927421304,-7450.70844957,0.00016998,2]
[365807094,1749927421388,-300.0,0.00016997,2]
[365807095,1749927421430,-595.82568173,0.00016998,2]
[365807096,1749927421472,-9104.17431827,0.00016998,2]
[365807097,1749927421521,-692.32199553,0.00016998,2]
[365807098,1749927421560,-300.0,0.00016999,2]
[365807099,1749927421599,-497.28495389,0.00016999,2]
[365807100,1749927421637,-500.0,0.00016999,2]
[365807101,1749927421676,-500.0,0.00016999,2]
[365807102,1749927421719,-500.0,0.00016999,2]
[365807103,1749927421761,-500.0,0.00016999,2]
[365807104,1749927421803,-500.0,0.00016999,2]
[365807105,1749927421866,-500.0,0.00016999,2]
[365807106,1749927421923,-605.97511507,0.00016999,2]
[365807107,1749927421985,-500.0,0.00016999,2]
[365807108,1749927422028,-180.85129124,0.00016999,2]
[365807109,1749927422071,-371.56721226,0.00016999,2]
[365807110,1749927422112,-500.0,0.00016999,2]
[365807111,1749927422154,-534.0,0.00017,2]
[365807112,1749927422196,-497.84451733,0.00017,2]
[365807113,1749927422240,-2320.15491468,0.00017,2]
[365807114,1749927422292,-10000.0,0.00017,2]
[365807115,1749927422369,-10000.0,0.00017,2]
[365807116,1749927422441,-10000.0,0.00017,2]
[365807117,1749927422488,-10000.0,0.00017,2]
[365807118,1749927422537,-10000.0,0.00017,2]
[365807119,1749927422618,-550.0,0.00016997,2]
[365807120,1749927422666,-9450.0,0.00017,2]
[365807121,1749927422775,-7009.68048949,0.00017,2]
[365807122,1749927422813,-2990.31951051,0.00017,2]
[365807123,1749927422979,-10000.0,0.00017,2]
[365807124,1749927423139,-10000.0,0.00017,2]
[365807125,1749927423379,-10000.0,0.00017,2]
[365807126,1749927423532,-10000.0,0.00017,2]
[365807127,1749927423671,-10000.0,0.00017,2]
[365807128,1749927423824,-10000.0,0.00017,2]
[365807129,1749927424037,-10000.0,0.00017,2]
[365807130,1749927424334,-10000.0,0.00017,2]
[365807131,1749927424383,-10000.0,0.00017,2]
[365807132,1749927424484,-10000.0,0.00017,2]
[365807133,1749927425153,-8816.03233267,0.00017,2]
[365807134,1749927425190,-1183.96766733,0.00017,2]
[365807135,1749927425222,-10000.0,0.00017,2]
[365807136,1749927425261,-10000.0,0.00017,2]
[365807137,1749927425329,-151.0,0.0001699,2]
[365807138,1749927425351,-9849.0,0.00017,2]
[365807139,1749927425397,-10000.0,0.00017,2]
[365807140,1749927425469,-151.0,0.0001699,2]
[365807141,1749927425494,-9849.0,0.00017,2]
[365807142,1749927425581,-10000.0,0.00017,2]
[365807143,1749927425749,-10000.0,0.00017,2]
[365807144,1749927425900,-10000.0,0.00017,2]
[365807145,1749927426064,-10000.0,0.00017,2]
[365807146,1749927427084,-10000.0,0.00017,2]
[365807147,1749927427461,-10000.0,0.00017,2]
[365807148,1749927427497,-10000.0,0.00017,2]
[365807149,1749927427543,-1957.856,0.0001699,2]
[365807150,1749927427565,-8042.144,0.00017,2]
[365807151,1749927427607,-10000.0,0.00017,2]
[365807152,1749927427765,-10000.0,0.00017,2]
[365807153,1749927427835,-10000.0,0.00017,2]
[365807154,1749927427891,-10000.0,0.00017,2]
[365807155,1749927427926,-10000.0,0.00017,2]
[365807156,1749927427961,-10000.0,0.00017,2]
[365807157,1749927428039,-10000.0,0.00017,2]
[365807158,1749927570465,-10000.0,0.00016017,2]
[365807159,1749927570677,-10000.0,0.00016017,2]
[365807160,1749927571024,-3900.0,0.00016017,2]
[365807161,1749927571048,-500.0,0.00016165,2]
[365807162,1749927571074,-249.54,0.00016302,2]
[365807163,1749927571097,-300.0,0.00016302,2]
[365807164,1749927571124,-253.81,0.00016303,2]
[365807165,1749927571149,-249.08,0.00016303,2]
[365807166,1749927571174,-249.52,0.00016303,2]
[365807167,1749927571200,-254.18,0.00016303,2]
[365807168,1749927571225,-254.98,0.00016303,2]
[365807169,1749927571597,-247.07,0.00016303,2]
[365807170,1749927571626,-249.03,0.00016303,2]
[365807171,1749927571650,-250.62,0.00016303,2]
[365807172,1749927571674,-251.36,0.00016303,2]
[365807173,1749927571699,-246.14,0.00016303,2]
[365807174,1749927571724,-247.9,0.00016303,2]
[365807175,1749927571750,-253.15,0.00016303,2]
[365807176,1749927571778,-253.57,0.00016303,2]
[365807177,1749927571803,-249.09,0.00016303,2]
[365807178,1749927571827,-245.26,0.00016303,2]
[365807179,1749927571851,-247.57,0.00016303,2]
[365807180,1749927571875,-249.58,0.00016303,2]
[365807181,1749927571899,-253.88,0.00016303,2]
[365807182,1749927571921,-200.0,0.0001633,2]
[365807183,1749927571945,-250.0,0.0001634,2]
[365807184,1749927571968,-94.67,0.00016582,2]
[365807185,1749927572013,-73.33,0.00016582,2]
[365807186,1749927572037,-833.63237626,0.00016713,2]
[365807187,1749927572061,-168.0,0.00016759,2]
[365807188,1749927572085,-868.22992952,0.00016832,2]
[365807189,1749927572110,-184.12743478,0.000169,2]
[365807190,1749927572134,-285.29091315,0.000169,2]
[365807191,1749927572157,-3465.97628309,0.000169,2]
[365807192,1749927572179,-500.0,0.00016973,2]
[365807193,1749927572202,-207.4,0.0001699,2]
[365807194,1749927572225,-3381.7861234,0.00016998,2]
[365807195,1749927572249,-32.2269398,0.00016998,2]
[365807196,1749927572290,-10000.0,0.00016998,2]
[365807197,1749927572331,-6040.5043559,0.00016998,2]
[365807198,1749927572354,-300.0,0.00016999,2]
[365807199,1749927572378,-1000.0,0.00016999,2]
[365807200,1749927572400,-1000.0,0.00016999,2]
[365807201,1749927572423,-1189.57,0.00016999,2]
[365807202,1749927572445,-349.54548526,0.00016999,2]
[365807203,1749927572470,-120.38015884,0.00016999,2]
[365807204,1749927572511,-379.61984116,0.00016999,2]
[365807205,1749927572535,-345.82303676,0.00016999,2]
[365807206,1749927572558,-248.92225867,0.00017,2]
[365807207,1749927572584,-9025.63486341,0.00017,2]
[365807208,1749927572628,-10000.0,0.00017,2]
[365807209,1749927572668,-10000.0,0.00017,2]
[365807210,1749927572704,-10000.0,0.00017,2]
[365807211,1749927572744,-10000.0,0.000169,2]
[365807212,1749927572787,-10000.0,0.000169,2]
[365807213,1749927572823,-10000.0,0.000169,2]
[365807214,1749927572872,-10000.0,0.000169,2]
[365807215,1749927572908,-10000.0,0.000169,2]
[365807216,1749927572948,-10000.0,0.000169,2]
[365807217,1749927573024,-10000.0,0.000169,2]
[365807218,1749927573168,-10000.0,0.000169,2]
[365807219,1749927573314,-1901.0223,0.000169,2]
[365807220,1749927573340,-159.47825011,0.000169,2]
[365807221,1749927573370,-7939.49944989,0.00017,2]
[365807222,1749927573463,-10000.0,0.00017,2]
[365807223,1749927573601,-10000.0,0.00017,2]
[365807224,1749927573958,-10000.0,0.00017,2]
[365807225,1749927574116,-10000.0,0.00017,2]
[365807226,1749927574316,-819.27785335,0.00017,2]
[365807227,1749927574342,-9180.72214665,0.00017,2]
[365807228,1749927574500,-171.55152656,0.000169,2]
[365807229,1749927574524,-9828.44847344,0.00017,2]
[365807230,1749927574903,-10000.0,0.00017,2]
[365807231,1749927575090,-10000.0,0.00017,2]
[365807232,1749927576566,-10000.0,0.00017,2]
[365807233,1749927576600,-10000.0,0.00017,2]
[365807234,1749927576631,-10000.0,0.00017,2]
[365807235,1749927576663,-10000.0,0.00017,2]
[365807236,1749927576696,-10000.0,0.00017,2]
[365807237,1749927576727,-10000.0,0.00017,2]
[365807238,1749927576758,-10000.0,0.00017,2]
[365807239,1749927576790,-10000.0,0.00017,2]
[365807240,1749927576822,-10000.0,0.00017,2]
[365807241,1749927576855,-10000.0,0.00017,2]
[365807242,1749927576889,-10000.0,0.00017,2]
[365807243,1749927576965,-10000.0,0.00017,2]
[365807244,1749927577096,-10000.0,0.00017,2]
[365807245,1749927577226,-10000.0,0.00017,2]
[365807246,1749927577350,-10000.0,0.00017,2]
[365807247,1749927577472,-10000.0,0.00017,2]
[365807248,1749927577596,-10000.0,0.00017,2]
[365807249,1749927577727,-10000.0,0.00017,2]
[365807250,1749927577866,-10000.0,0.00017,2]
[365807251,1749927578022,-10000.0,0.00017,2]
[365807252,1749927578162,-10000.0,0.00017,2]
[365807253,1749927578280,-10000.0,0.00017,2]
[365807254,1749927578409,-10000.0,0.00017,2]
[365807255,1749927578556,-10000.0,0.00017,2]
[365807256,1749927578686,-10000.0,0.00017,2]
[365807257,1749927578817,-10000.0,0.00017,2]
[365807258,1749927578937,-10000.0,0.00017,2]
[365807259,1749927579069,-10000.0,0.00017,2]
[365807260,1749927579391,-10000.0,0.00017,2]
[365807261,1749927579515,-10000.0,0.00017,2]
[365807262,1749927579654,-10000.0,0.00017,2]
[365807263,1749927579790,-10000.0,0.00017,2]
[365807264,1749927579917,-10000.0,0.00017,2]
[365807265,1749927618981,1430.3,0.00014412,2]
[365807266,1749927622439,-201.0,0.00016057,2]
[365807267,1749927622466,-248.28,0.00016197,2]
[365807268,1749927622492,-252.88,0.00016197,2]
[365807269,1749927622518,-252.55,0.00016197,2]
[365807270,1749927622542,-201.0,0.00016643,2]
[365807271,1749927622566,-1430.3,0.00016676,2]
[365807272,1749927622589,-684.0855,0.00016899,2]
[365807273,1749927622627,-515.9145,0.00016899,2]
[365807274,1749927622652,-384.0,0.00016899,2]
[365807275,1749927622674,-2370.181,0.000169,2]
[365807276,1749927622703,-3270.0955,0.000169,2]
[365807277,1749927622739,-3270.0955,0.000169,2]
[365807278,1749927622839,-3270.0955,0.000169,2]
[365807279,1749927623014,-3270.0955,0.000169,2]
[365807280,1749927623144,-3270.0955,0.000169,2]
[365807281,1749927623529,-3270.0955,0.000169,2]
[365807282,1749927623736,-3270.0955,0.000169,2]
[365807283,1749927623867,-3270.0955,0.000169,2]
[365807284,1749927624007,-3270.0955,0.000169,2]
[365807285,1749927624142,-3270.0955,0.000169,2]
[365807286,1749927624270,-3270.0955,0.000169,2]
[365807287,1749927624571,-3270.0955,0.000169,2]
[365807288,1749927624748,-3270.0955,0.000169,2]
[365807289,1749927624870,-3270.0955,0.000169,2]
[365807290,1749927624993,-3270.0955,0.000169,2]
[365807291,1749927625115,-3270.0955,0.000169,2]
[365807292,1749927625475,-2649.87814766,0.000169,2]
[365807293,1749927625498,-425.4166136,0.000169,2]
[365807294,1749927625520,-194.80073874,0.00016973,2]
[365807295,1749927625679,-305.19926126,0.00016973,2]
[365807296,1749927625703,-500.0,0.00016973,2]
[365807297,1749927625726,-563.19258255,0.00016973,2]
[365807298,1749927625749,-1901.70365619,0.00017,2]
[365807299,1749927625810,-3270.0955,0.00017,2]
[365807300,1749927625951,-3270.0955,0.00017,2]
[365807301,1749927626080,-3270.0955,0.00017,2]
[365807302,1749927626208,-3270.0955,0.00017,2]
[365807303,1749927626341,-3270.0955,0.00017,2]
[365807304,1749927626464,-3270.0955,0.00017,2]
[365807305,1749927626591,-3270.0955,0.00017,2]
[365807306,1749927626715,-3270.0955,0.00017,2]
[365807307,1749927626849,-3270.0955,0.00017,2]
[365807308,1749927627179,-155.0,0.00016999,2]
[365807309,1749927627205,-3115.0955,0.00017,2]
[365807310,1749927627314,-3270.0955,0.00017,2]
[365807311,1749927627447,-3270.0955,0.00017,2]
[365807312,1749927627939,-3270.0955,0.00017,2]
[365807313,1749927627969,-3270.0955,0.00017,2]
[365807314,1749927628011,-3270.0955,0.00017,2]
[365807315,1749927628040,-3270.0955,0.00017,2]
[365807316,1749927628089,-3270.0955,0.00017,2]
[365807317,1749927628266,-3270.0955,0.00017,2]
[365807318,1749927628384,-3270.0955,0.00017,2]
[365807319,1749927628520,-3270.0955,0.00017,2]
[365807320,1749927628646,-3270.0955,0.00017,2]
[365807321,1749927628776,-3270.0955,0.00017,2]
[365807322,1749927628915,-3270.0955,0.00017,2]
[365807323,1749927629039,-3270.0955,0.00017,2]
[365807324,1749927629170,-3270.0955,0.00017,2]
[365807325,1749927629294,-3270.0955,0.00017,2]
[365807326,1749927629440,-3270.0955,0.00017,2]
[365807327,1749927629561,-3270.0955,0.00017,2]
[365807328,1749927629684,-3270.0955,0.00017,2]
[365807329,1749927629819,-3270.0955,0.00017,2]
[365807330,1749927629943,-3270.0955,0.00017,2]
[365807331,1749927630069,-3270.0955,0.00017,2]
[365807332,1749927630201,-3270.0955,0.00017,2]
[365807333,1749927630328,-3270.0955,0.00017,2]
[365807334,1749927630451,-3270.0955,0.00017,2]
[365807335,1749927630573,-3270.0955,0.00017,2]
[365807336,1749927630742,-3270.0955,0.00017,2]
[365807337,1749927630830,-3270.0955,0.00017,2]
[365807338,1749927630961,-3270.0955,0.00017,2]
[365807339,1749927631300,-3270.0955,0.00017,2]
[365807340,1749927943084,201.0,0.00015057,2]
[365807341,1749927943137,201.0,0.00015664,2]
[365807343,1749928001543,202.0,0.00015057,2]
[365807356,1749928173171,150.0,0.00016001,2]
[365807358,1749928231458,-415.32026094,0.00016015,2]
[365807359,1749928231470,-496.496,0.00016015,2]
[365807360,1749928231513,-88.18373906,0.00016015,2]
[365807361,1749928231522,-161.05,0.00016024,2]
[365807362,1749928231532,-543.49,0.00016045,2]
[365807363,1749928231542,-126.68940461,0.0001606,7]
[365807364,1749928231554,-73.31059539,0.0001606,7]
[365807365,1749928231564,-201.0,0.00016272,3]
[365807366,1749928231575,-152.0,0.00016324,3]
[365807367,1749928231584,-165.087348,0.00016813,2]
[365807368,1749928231594,-140.97778239,0.00016813,2]
[365807369,1749928231605,-171.73521761,0.00016813,2]
[365807370,1749928231618,-637.0,0.0001685,2]
[365807371,1749928231627,-195.0,0.0001686,2]
[365807372,1749928231637,-2000.0,0.00016864,2]
[365807373,1749928231647,-200.0,0.00016864,2]
[365807374,1749928231656,-1200.0,0.00016868,2]
[365807375,1749928231666,-868.22992952,0.00016869,2]
[365807376,1749928231675,-201.0,0.00016879,4]
[365807377,1749928231686,-833.63237626,0.0001688,2]
[365807378,1749928231696,-300.0,0.00016898,2]
[365807379,1749928231706,-300.0,0.00016899,2]
[365807380,1749928231715,-806.89,0.000169,2]
[365807381,1749928231725,-461.5,0.000169,2]
[365807382,1749928231734,-797.31,0.000169,2]
[365807383,1749928231745,-461.5,0.000169,2]
[365807384,1749928231754,-461.5,0.000169,2]
[365807385,1749928231764,-797.31,0.000169,2]
[365807386,1749928231774,-241.62,0.000169,2]
[365807387,1749928231783,-264.79,0.000169,2]
[365807388,1749928231793,-241.47609924,0.000169,2]
[365807389,1749928231802,-170.78,0.000169,2]
[365807390,1749928231813,-922.74,0.000169,2]
[365807391,1749928231822,-163.42,0.000169,2]
[365807392,1749928231831,-797.31,0.000169,2]
[365807393,1749928231841,-283.61107574,0.000169,2]
[365807396,1749928231851,-170.78,0.000169,2]
[365807397,1749928231860,-797.31,0.000169,2]
[365807398,1749928231869,-256.76182188,0.000169,2]
[365807399,1749928231879,-170.78,0.000169,2]
[365807400,1749928231888,-797.31,0.000169,2]
[365807401,1749928231898,-201.33957346,0.000169,2]
[365807402,1749928231907,-262.0,0.00016912,2]
[365807403,1749928231917,-267.0,0.00016921,2]
[365807404,1749928231927,-594.08918556,0.00016973,2]
[365807405,1749928231936,-500.0,0.00016973,2]
[365807406,1749928231946,-500.0,0.00016973,2]
[365807407,1749928231955,-500.0,0.00016973,2]
[365807408,1749928231965,-500.0,0.00016973,2]
[365807409,1749928231975,-151.0,0.0001699,2]
[365807410,1749928231986,-151.0,0.0001699,2]
[365807411,1749928231996,-1957.856,0.0001699,2]
[365807413,1749928232007,-207.4,0.0001699,2]
[365807415,1749928232017,-1000.0,0.00016999,2]
[365807417,1749928232026,-173.8,0.00016999,2]
[365807419,1749928232036,-300.0,0.00016999,2]
[365807421,1749928232046,-902.2418992,0.00017,2]
[365807423,1749928232060,-1280.86813107,0.00017,2]
[365807426,1749928232072,-604.78751544,0.00017,2]
[365807428,1749928232082,-1260.28298281,0.00017,2]
[365807430,1749928232093,-1114.58118866,0.00017,2]
[365807432,1749928232109,-447.34073294,0.00017,2]
[365807435,1749928232120,-252.82824404,0.00017,2]
[365807437,1749928232131,-21500.89279999,0.00017,2]
[365807439,1749928232143,-267.59430731,0.00017,2]
[365807441,1749928232155,-2059.8763163,0.00017,2]
[365807444,1749928232167,-2238.11210102,0.00017,2]
[365807446,1749928232178,-459.49668954,0.00017,2]
[365807448,1749928232190,-271.414428,0.00017,2]
[365807450,1749928232201,-295.80682,0.00017,2]
[365807452,1749928232212,-580.71938129,0.00017,2]
[365807454,1749928232223,-3288.43931672,0.00017,2]
[365807456,1749928232235,-4749.77558806,0.00017,2]
[365807459,1749928232247,-321.29154664,0.00017,2]
[365807461,1749928232259,-6354.02085553,0.00017,2]
[365807463,1749928232272,-684.71908266,0.00017,2]
[365807465,1749928232285,-3131.49389417,0.00017,2]
[365807468,1749928232297,-13228.75482803,0.00017,2]
[365807470,1749928232309,-1149.65107559,0.00017,2]
[365807588,1749928237435,-177.0,0.0001684,2]
[365807589,1749928237444,-10849.49742838,0.00017,2]
[365808055,1749928242609,-1608.92026847,0.00017,2]
[365808079,1749928242823,-829.25077357,0.00017,2]
[365808539,1749928249810,-0.00571319,0.00017,2]
[365808540,1749928336976,-201.0,0.00016486,2]
[365808541,1749928337000,-25.88,0.00016899,2]
[365808544,1749928468188,420.21,0.00013699,2]
[365808545,1749928538628,301.9705667,0.00025,120]
[365808549,1749928603436,-263.06805071,0.00016044,2]
[365808550,1749928605064,-226.88,0.00016044,2]
[365808551,1749928610934,-10.05194929,0.00016044,2]
[365808552,1749928610958,-190.94805071,0.00016061,2]
[365808553,1749928618304,1287.27,0.00014126,2]
[365808554,1749928622557,-59.05194929,0.00016061,2]
[365808555,1749928671383,666.0,0.00015922,2]
[365808556,1749928728116,-209.05865562,0.00016014,2]
[365808557,1749928730344,-259.91941771,0.00016014,2]
[365808558,1749928733386,-58.12192667,0.00016014,2]
[365808559,1749928755719,23900.0,0.00015929,2]
[365808560,1749928991377,201.0,0.00015108,2]
[365808561,1749928991636,201.0,0.00015749,2]
[365808562,1749929060829,1000.0,0.00015809,2]
[365808563,1749929113099,202.0,0.00015108,2]
[365808564,1749929158176,168.0,0.00015726,2]
[365808565,1749929161997,168.0,0.00015271,2]
[365808566,1749929171665,204.0,0.00015108,2]
[365808576,1749929297806,803.01,0.0001576,2]
[365808577,1749929317826,226.88,0.00015763,2]
[365808579,1749929352071,201.0,0.00015391,2]
[365808588,1749929421161,250.0,0.00015781,2]
[365808589,1749929428850,259.91941771,0.00015978,2]
[365808686,1749929432927,-201.0,0.00016037,2]
[365808688,1749929432936,-168.0,0.00016078,2]
[365808690,1749929432945,-166.52,0.00016276,2]
[365808692,1749929432955,-1030.15122521,0.000163,2]
[365808694,1749929432967,-528.03027479,0.000163,2]
[365808696,1749929432976,-1287.27,0.0001639,2]
[365808698,1749929432985,-600.0,0.000164,5]
[365808700,1749929432995,-1300.0,0.000165,6]
[365808702,1749929433005,-168.0,0.00016502,2]
[365808704,1749929433014,-151.0,0.0001653,2]
[365808706,1749929433023,-1200.0,0.00016549,2]
[365808708,1749929433033,-250.46,0.0001655,2]
[365808710,1749929433042,-252.74,0.0001655,2]
[365808712,1749929433051,-251.53,0.0001655,2]
[365808714,1749929433061,-246.6,0.0001655,2]
[365808716,1749929433070,-300.0,0.00016552,2]
[365808718,1749929433080,-300.0,0.00016553,2]
[365808720,1749929433090,-247.79,0.00016554,2]
[365808722,1749929433100,-250.66,0.00016554,2]
[365808724,1749929433109,-252.0,0.00016554,2]
[365808726,1749929433119,-249.92,0.00016554,2]
[365808728,1749929433129,-254.29,0.00016554,2]
[365808730,1749929433139,-151.0,0.00016587,2]
[365808732,1749929433149,-151.0,0.00016587,2]
[365808734,1749929433158,-151.0,0.00016587,2]
[365808736,1749929433168,-512.28236882,0.00016587,2]
[365808738,1749929433178,-152.07473124,0.00016587,2]
[365808740,1749929433188,-206.14301744,0.00016587,2]
[365808742,1749929433197,-1957.856,0.00016587,2]
[365808744,1749929433207,-1000.0,0.00016587,2]
[365808746,1749929433217,-1000.0,0.00016587,2]